[Event "*** Titled Tuesday 3|2 Blitz"]
[Site "Chess.com"]
[Date "2016.10.04"]
[Round "3"]
[White "ftorodent"]
[Black "FabianoCaruana"]
[Result "1-0"]
[WhiteElo "2511"]
[BlackElo "2647"]
[TimeControl "180+2"]
[EndTime "11:37:10 PDT"]
[Termination "ftorodent won by resignation"]

1. d4 {[%clk 0:03:01.9]} 1... Nf6 {[%clk 0:03:00.4]} 2. c4 {[%clk 0:03:02.6]}
2... b6 {[%clk 0:03:01.2]} 3. Nc3 {[%clk 0:03:01.2]} 3... Bb7 {[%clk 0:03:01.9]}
4. Nf3 {[%clk 0:02:57.9]} 4... e6 {[%clk 0:02:59]} 5. a3 {[%clk 0:02:58.5]} 5...
d5 {[%clk 0:02:59]} 6. Bg5 {[%clk 0:02:56.1]} 6... Be7 {[%clk 0:02:59.2]} 7. e3
{[%clk 0:02:56.9]} 7... O-O {[%clk 0:02:59.8]} 8. Bd3 {[%clk 0:02:54.1]} 8...
dxc4 {[%clk 0:02:59.6]} 9. Bxc4 {[%clk 0:02:55]} 9... Nbd7 {[%clk 0:03:00.5]}
10. O-O {[%clk 0:02:54.1]} 10... c5 {[%clk 0:03:01]} 11. Qe2 {[%clk 0:02:55.2]}
11... h6 {[%clk 0:03:01.2]} 12. Bh4 {[%clk 0:02:55.6]} 12... cxd4 {[%clk
0:03:01.1]} 13. Nxd4 {[%clk 0:02:53.6]} 13... Ne4 {[%clk 0:02:54.7]} 14. Nxe4
{[%clk 0:02:45]} 14... Bxe4 {[%clk 0:02:48]} 15. Bg3 {[%clk 0:02:40]} 15... Bf6
{[%clk 0:02:30]} 16. Rfd1 {[%clk 0:02:36.8]} 16... Qe7 {[%clk 0:02:30.3]} 17.
Qg4 {[%clk 0:02:19.3]} 17... Bxd4 {[%clk 0:02:11]} 18. Rxd4 {[%clk 0:02:16.7]}
18... Nf6 {[%clk 0:02:08.3]} 19. Qh4 {[%clk 0:01:47.2]} 19... Bd5 {[%clk
0:02:02.1]} 20. Bxd5 {[%clk 0:01:01.1]} 20... Nxd5 {[%clk 0:02:02.4]} 21. Qxe7
{[%clk 0:01:01]} 21... Nxe7 {[%clk 0:02:03.5]} 22. Rd7 {[%clk 0:01:02]} 22...
Nd5 {[%clk 0:02:02.8]} 23. h3 {[%clk 0:00:59.1]} 23... Rfc8 {[%clk 0:02:01.9]}
24. Be5 {[%clk 0:00:56.7]} 24... f6 {[%clk 0:01:51.7]} 25. Bd4 {[%clk
0:00:55.6]} 25... Rc7 {[%clk 0:01:52.5]} 26. Rxc7 {[%clk 0:00:55.3]} 26... Nxc7
{[%clk 0:01:53.8]} 27. Rc1 {[%clk 0:00:39.9]} 27... Nb5 {[%clk 0:01:42.5]} 28.
Rc6 {[%clk 0:00:40.9]} 28... e5 {[%clk 0:01:20.8]} 29. Bc3 {[%clk 0:00:41.9]}
29... Rd8 {[%clk 0:01:21.3]} 30. a4 {[%clk 0:00:31.8]} 30... Rd1+ {[%clk
0:01:19.7]} 31. Kh2 {[%clk 0:00:32]} 31... Nxc3 {[%clk 0:01:04.4]} 32. bxc3
{[%clk 0:00:33.2]} 32... Ra1 {[%clk 0:01:03.3]} 33. Rc4 {[%clk 0:00:34.4]} 33...
a5 {[%clk 0:01:00.8]} 34. Rc6 {[%clk 0:00:32.9]} 34... Rxa4 {[%clk 0:01:01]} 35.
Rxb6 {[%clk 0:00:33.8]} 35... Rc4 {[%clk 0:01:02.2]} 36. Ra6 {[%clk 0:00:34.6]}
36... a4 {[%clk 0:01:00.4]} 37. Ra7 {[%clk 0:00:34.2]} 37... h5 {[%clk
0:00:57.9]} 38. g3 {[%clk 0:00:32.1]} 38... g5 {[%clk 0:00:57.3]} 39. Kg2 {[%clk
0:00:32.8]} 39... h4 {[%clk 0:00:56.8]} 40. g4 {[%clk 0:00:32.4]} 40... Kf8
{[%clk 0:00:57.7]} 41. Kf3 {[%clk 0:00:31.7]} 41... Ke8 {[%clk 0:00:55.8]} 42.
Ke2 {[%clk 0:00:28.2]} 42... e4 {[%clk 0:00:56.7]} 43. Kd2 {[%clk 0:00:26.7]}
43... f5 {[%clk 0:00:42.9]} 44. gxf5 {[%clk 0:00:24.2]} 44... g4 {[%clk
0:00:43.7]} 45. hxg4 {[%clk 0:00:24.6]} 45... h3 {[%clk 0:00:44.6]} 46. Kc2
{[%clk 0:00:17.4]} 46... Rc6 {[%clk 0:00:36.4]} 47. Rh7 {[%clk 0:00:17.5]} 47...
a3 {[%clk 0:00:36.7]} 48. Kb3 {[%clk 0:00:15.7]} 48... a2 {[%clk 0:00:27.6]} 49.
Kxa2 {[%clk 0:00:16.6]} 49... Rxc3 {[%clk 0:00:28.7]} 50. Rxh3 {[%clk
0:00:17.7]} 50... Rc2+ {[%clk 0:00:30]} 51. Kb3 {[%clk 0:00:18.9]} 51... Rxf2
{[%clk 0:00:30.8]} 52. Kc4 {[%clk 0:00:18.7]} 52... Rg2 {[%clk 0:00:28.2]} 53.
Rh4 {[%clk 0:00:19.2]} 53... Kf7 {[%clk 0:00:25.2]} 54. Kd4 {[%clk 0:00:19.9]}
54... Kf6 {[%clk 0:00:26.6]} 55. Kxe4 {[%clk 0:00:20.8]} 55... Kg5 {[%clk
0:00:27.4]} 56. Kf3 {[%clk 0:00:21.8]} 56... Rg1 {[%clk 0:00:27.3]} 57. Rh5+
{[%clk 0:00:22.9]} 1-0

[Event "*** Titled Tuesday 3|2 Blitz"]
[Site "Chess.com"]
[Date "2016.10.04"]
[Round "3"]
[White "GMHess"]
[Black "GMNeiksans"]
[Result "1-0"]
[WhiteElo "2593"]
[BlackElo "2644"]
[TimeControl "180+2"]
[EndTime "11:37:17 PDT"]
[Termination "GMHess won by resignation"]

1. c4 {[%clk 0:03:02]} 1... e5 {[%clk 0:03:00.3]} 2. Nc3 {[%clk 0:03:01.4]} 2...
Nf6 {[%clk 0:03:01.3]} 3. Nf3 {[%clk 0:03:03]} 3... Nc6 {[%clk 0:03:02.3]} 4. e3
{[%clk 0:03:04.5]} 4... Bb4 {[%clk 0:03:02.8]} 5. Qc2 {[%clk 0:03:05.5]} 5...
O-O {[%clk 0:02:56]} 6. Nd5 {[%clk 0:03:06.2]} 6... Re8 {[%clk 0:02:55.3]} 7.
Qf5 {[%clk 0:03:05.9]} 7... d6 {[%clk 0:02:28.6]} 8. Nxf6+ {[%clk 0:03:05.1]}
8... Qxf6 {[%clk 0:02:29.8]} 9. Qxf6 {[%clk 0:03:06.3]} 9... gxf6 {[%clk
0:02:31.1]} 10. a3 {[%clk 0:03:08]} 10... Bc5 {[%clk 0:02:30.4]} 11. b4 {[%clk
0:03:09.9]} 11... Bb6 {[%clk 0:02:31.7]} 12. Bb2 {[%clk 0:03:05.6]} 12... a5
{[%clk 0:02:27.6]} 13. b5 {[%clk 0:03:06]} 13... Nd8 {[%clk 0:02:28.8]} 14. g4
{[%clk 0:03:04.5]} 14... Ne6 {[%clk 0:02:25.6]} 15. Rg1 {[%clk 0:02:59.3]} 15...
Ng5 {[%clk 0:02:20.2]} 16. Bg2 {[%clk 0:02:34]} 16... Kf8 {[%clk 0:01:58.3]} 17.
d3 {[%clk 0:02:14.8]} 17... Rb8 {[%clk 0:01:53.8]} 18. Nxg5 {[%clk 0:01:59.3]}
18... fxg5 {[%clk 0:01:54.5]} 19. Be4 {[%clk 0:02:00.4]} 19... h6 {[%clk
0:01:54.8]} 20. Ke2 {[%clk 0:01:54.4]} 20... Be6 {[%clk 0:01:51.9]} 21. h4
{[%clk 0:01:47.6]} 21... Ke7 {[%clk 0:01:52.4]} 22. f3 {[%clk 0:01:44.4]} 22...
Red8 {[%clk 0:01:47.8]} 23. Rh1 {[%clk 0:01:39.9]} 23... c6 {[%clk 0:01:42.5]}
24. hxg5 {[%clk 0:01:20.4]} 24... hxg5 {[%clk 0:01:42.9]} 25. a4 {[%clk
0:01:11.6]} 25... Rh8 {[%clk 0:01:25.1]} 26. Rab1 {[%clk 0:00:46]} 26... Bc5
{[%clk 0:00:56.4]} 27. Bc3 {[%clk 0:00:24.8]} 27... cxb5 {[%clk 0:00:50.6]} 28.
axb5 {[%clk 0:00:22.8]} 28... b6 {[%clk 0:00:44.7]} 29. Kd2 {[%clk 0:00:21.2]}
29... Rbc8 {[%clk 0:00:20.4]} 30. Bb7 {[%clk 0:00:19.6]} 30... Rb8 {[%clk
0:00:19.6]} 31. Bc6 {[%clk 0:00:20.4]} 31... Rbd8 {[%clk 0:00:11.8]} 32. d4
{[%clk 0:00:19.6]} 32... exd4 {[%clk 0:00:13.1]} 33. exd4 {[%clk 0:00:21.5]}
33... Bb4 {[%clk 0:00:07.6]} 34. Bxb4 {[%clk 0:00:18.3]} 34... Rxh1 {[%clk
0:00:08]} 35. Rxh1 {[%clk 0:00:17.1]} 35... axb4 {[%clk 0:00:09.3]} 36. d5
{[%clk 0:00:18.8]} 36... Bc8 {[%clk 0:00:09.3]} 37. Rb1 {[%clk 0:00:17.2]} 37...
Rh8 {[%clk 0:00:10.1]} 38. Rxb4 {[%clk 0:00:17.7]} 38... Rh2+ {[%clk 0:00:10.5]}
39. Ke3 {[%clk 0:00:17.7]} 39... Ra2 {[%clk 0:00:11.5]} 40. Rb3 {[%clk
0:00:17.3]} 40... Bd7 {[%clk 0:00:10.9]} 41. Kd4 {[%clk 0:00:17.3]} 41... Rd2+
{[%clk 0:00:10.9]} 42. Kc3 {[%clk 0:00:18.5]} 42... Ra2 {[%clk 0:00:10.4]} 43.
Kb4 {[%clk 0:00:19.6]} 43... Kd8 {[%clk 0:00:10.5]} 44. Re3 {[%clk 0:00:18.5]}
44... Rb2+ {[%clk 0:00:08.7]} 45. Kc3 {[%clk 0:00:19.7]} 45... Ra2 {[%clk
0:00:10]} 46. Kd4 {[%clk 0:00:21.2]} 46... Rd2+ {[%clk 0:00:11]} 47. Ke4 {[%clk
0:00:22.1]} 47... Bc8 {[%clk 0:00:11]} 48. f4 {[%clk 0:00:19]} 48... Rg2 {[%clk
0:00:08.3]} 49. Kf3 {[%clk 0:00:13.3]} 49... Rg1 {[%clk 0:00:03.7]} 50. Re8+
{[%clk 0:00:12.1]} 50... Kc7 {[%clk 0:00:05]} 51. f5 {[%clk 0:00:13.2]} 51...
Rf1+ {[%clk 0:00:04.7]} 52. Kg3 {[%clk 0:00:11.9]} 52... Rf4 {[%clk 0:00:05.7]}
53. Re7+ {[%clk 0:00:12.2]} 53... Kd8 {[%clk 0:00:07]} 54. Rxf7 {[%clk
0:00:13.1]} 54... Rxc4 {[%clk 0:00:08.2]} 55. Rg7 {[%clk 0:00:11.9]} 1-0

[Event "*** Titled Tuesday 3|2 Blitz"]
[Site "Chess.com"]
[Date "2016.10.04"]
[Round "3"]
[White "Zhani-Z"]
[Black "Drags95"]
[Result "1-0"]
[WhiteElo "2324"]
[BlackElo "2397"]
[TimeControl "180+2"]
[EndTime "11:37:25 PDT"]
[Termination "Zhani-Z won by resignation"]

1. e4 {[%clk 0:02:58.1]} 1... c5 {[%clk 0:02:59.9]} 2. Nf3 {[%clk 0:02:58.3]}
2... d6 {[%clk 0:03:01.4]} 3. Nc3 {[%clk 0:02:59.1]} 3... Nf6 {[%clk 0:03:02.4]}
4. e5 {[%clk 0:03:00.1]} 4... dxe5 {[%clk 0:03:02.2]} 5. Nxe5 {[%clk 0:03:01.1]}
5... Nbd7 {[%clk 0:02:56.1]} 6. Nc4 {[%clk 0:02:53.8]} 6... e6 {[%clk
0:02:49.2]} 7. g3 {[%clk 0:02:53.5]} 7... Nb6 {[%clk 0:02:42]} 8. b3 {[%clk
0:02:23.7]} 8... Be7 {[%clk 0:02:40.4]} 9. Bg2 {[%clk 0:02:21.3]} 9... O-O
{[%clk 0:02:41.8]} 10. O-O {[%clk 0:02:22.1]} 10... Nbd5 {[%clk 0:02:42.6]} 11.
Bb2 {[%clk 0:02:16.4]} 11... b6 {[%clk 0:02:40.9]} 12. a4 {[%clk 0:02:10.6]}
12... Bb7 {[%clk 0:02:39.7]} 13. Nxd5 {[%clk 0:01:43.2]} 13... Bxd5 {[%clk
0:02:41.6]} 14. Bxd5 {[%clk 0:01:42.5]} 14... exd5 {[%clk 0:02:40.2]} 15. Ne3
{[%clk 0:01:41.6]} 15... d4 {[%clk 0:02:41.4]} 16. Nf5 {[%clk 0:01:39.4]} 16...
Re8 {[%clk 0:02:40.2]} 17. c3 {[%clk 0:01:31.9]} 17... Bf8 {[%clk 0:02:34.9]}
18. cxd4 {[%clk 0:01:19.8]} 18... Qd5 {[%clk 0:02:36.1]} 19. Ne3 {[%clk
0:01:18.2]} 19... Qd7 {[%clk 0:02:30.7]} 20. dxc5 {[%clk 0:01:16.2]} 20... Ne4
{[%clk 0:02:32.2]} 21. d4 {[%clk 0:00:50.7]} 21... bxc5 {[%clk 0:02:31.4]} 22.
dxc5 {[%clk 0:00:51.4]} 22... Qc6 {[%clk 0:02:26.1]} 23. Qf3 {[%clk 0:00:45.4]}
23... Qxc5 {[%clk 0:02:20.4]} 24. Rfd1 {[%clk 0:00:42.6]} 24... Qb6 {[%clk
0:02:15.5]} 25. Nc4 {[%clk 0:00:37.2]} 25... Qe6 {[%clk 0:01:58.8]} 26. Bd4
{[%clk 0:00:36]} 26... Ng5 {[%clk 0:01:59.6]} 27. Qg2 {[%clk 0:00:36.4]} 27...
Rad8 {[%clk 0:01:55.2]} 28. Be3 {[%clk 0:00:34.9]} 28... Rxd1+ {[%clk
0:01:38.4]} 29. Rxd1 {[%clk 0:00:34.4]} 29... Qg4 {[%clk 0:01:40.3]} 30. Rc1
{[%clk 0:00:26.5]} 30... Nf3+ {[%clk 0:01:41.1]} 31. Kh1 {[%clk 0:00:27.4]}
31... a6 {[%clk 0:01:40.1]} 32. h3 {[%clk 0:00:28.3]} 32... Qe4 {[%clk
0:01:38.4]} 33. Nd2 {[%clk 0:00:24.4]} 33... Nxd2 {[%clk 0:01:36.2]} 34. Bxd2
{[%clk 0:00:25.4]} 34... Qd3 {[%clk 0:01:37.5]} 35. Be3 {[%clk 0:00:21.5]} 35...
Qxb3 {[%clk 0:01:37.9]} 36. Qc6 {[%clk 0:00:22.8]} 36... Re6 {[%clk 0:01:31.9]}
37. Qd7 {[%clk 0:00:23.6]} 37... Rd6 {[%clk 0:01:16.8]} 38. Qe8 {[%clk
0:00:21.4]} 38... Re6 {[%clk 0:01:09.2]} 39. Qd7 {[%clk 0:00:22.1]} 39... Rd6
{[%clk 0:00:58]} 40. Qe8 {[%clk 0:00:21.7]} 40... Qd5+ {[%clk 0:00:59.6]} 41.
Kh2 {[%clk 0:00:21.7]} 41... Re6 {[%clk 0:01:01.1]} 42. Qb8 {[%clk 0:00:16.6]}
42... Qe5 {[%clk 0:00:32.7]} 43. Qxe5 {[%clk 0:00:14.5]} 43... Rxe5 {[%clk
0:00:34.6]} 44. Rc8 {[%clk 0:00:14.7]} 44... f6 {[%clk 0:00:34.7]} 45. Ra8
{[%clk 0:00:15.4]} 45... a5 {[%clk 0:00:32.2]} 46. Bb6 {[%clk 0:00:16.1]} 46...
Kf7 {[%clk 0:00:31.8]} 47. Rxa5 {[%clk 0:00:16.8]} 47... Re4 {[%clk 0:00:32.4]}
48. Ra7+ {[%clk 0:00:17]} 48... Kg6 {[%clk 0:00:33.8]} 49. a5 {[%clk 0:00:18]}
49... h5 {[%clk 0:00:35]} 50. h4 {[%clk 0:00:17.1]} 50... Ra4 {[%clk 0:00:35.6]}
51. a6 {[%clk 0:00:17]} 51... Kf5 {[%clk 0:00:37.2]} 52. Ra8 {[%clk 0:00:15.5]}
52... Bd6 {[%clk 0:00:30.9]} 53. a7 {[%clk 0:00:15]} 1-0

[Event "*** Titled Tuesday 3|2 Blitz"]
[Site "Chess.com"]
[Date "2016.10.04"]
[Round "3"]
[White "maciek_92"]
[Black "MaestroASK"]
[Result "1-0"]
[WhiteElo "2591"]
[BlackElo "2443"]
[TimeControl "180+2"]
[EndTime "11:37:39 PDT"]
[Termination "maciek_92 won by resignation"]

1. c4 {[%clk 0:03:01.9]} 1... d6 {[%clk 0:02:51.4]} 2. d4 {[%clk 0:02:59.3]}
2... g6 {[%clk 0:02:53.3]} 3. Nc3 {[%clk 0:02:59.8]} 3... c6 {[%clk 0:02:55.2]}
4. g3 {[%clk 0:03:00.5]} 4... e5 {[%clk 0:02:55.7]} 5. Nf3 {[%clk 0:02:59.5]}
5... f6 {[%clk 0:02:55.6]} 6. Bg2 {[%clk 0:03:00.2]} 6... Bg7 {[%clk 0:02:54]}
7. O-O {[%clk 0:03:01.7]} 7... Nh6 {[%clk 0:02:54.2]} 8. h3 {[%clk 0:03:01.9]}
8... Nf7 {[%clk 0:02:54.3]} 9. e4 {[%clk 0:02:54.7]} 9... O-O {[%clk 0:02:52.9]}
10. b3 {[%clk 0:02:51.9]} 10... Re8 {[%clk 0:02:52.9]} 11. Bb2 {[%clk
0:02:48.8]} 11... Nd7 {[%clk 0:02:52.1]} 12. Qd2 {[%clk 0:02:46.3]} 12... Nf8
{[%clk 0:02:52]} 13. Rad1 {[%clk 0:02:46.2]} 13... Qc7 {[%clk 0:02:52.5]} 14.
Ba3 {[%clk 0:02:33.6]} 14... a6 {[%clk 0:02:41]} 15. c5 {[%clk 0:02:31.3]} 15...
dxc5 {[%clk 0:02:37.4]} 16. Bxc5 {[%clk 0:02:27.4]} 16... Ne6 {[%clk 0:02:37]}
17. Ba3 {[%clk 0:02:22.8]} 17... exd4 {[%clk 0:02:28.3]} 18. Nxd4 {[%clk
0:02:24.7]} 18... Nxd4 {[%clk 0:02:23.9]} 19. Qxd4 {[%clk 0:02:26.6]} 19... f5
{[%clk 0:02:23.6]} 20. Qd2 {[%clk 0:02:12.5]} 20... fxe4 {[%clk 0:02:19]} 21.
Rfe1 {[%clk 0:02:02.3]} 21... Bf5 {[%clk 0:02:13.5]} 22. Nxe4 {[%clk 0:02:01]}
22... Rad8 {[%clk 0:02:05]} 23. Qc1 {[%clk 0:01:56.8]} 23... Bxe4 {[%clk
0:02:02.7]} 24. Rxe4 {[%clk 0:01:52.1]} 24... Rxe4 {[%clk 0:02:02.1]} 25. Bxe4
{[%clk 0:01:48.2]} 25... Rxd1+ {[%clk 0:02:01.3]} 26. Qxd1 {[%clk 0:01:48.9]}
26... Bf8 {[%clk 0:02:01.4]} 27. Bc1 {[%clk 0:01:47.2]} 27... Bh6 {[%clk
0:02:00.5]} 28. Bxh6 {[%clk 0:01:39.3]} 28... Nxh6 {[%clk 0:02:00.6]} 29. Bd3
{[%clk 0:01:38]} 29... b5 {[%clk 0:02:00.1]} 30. b4 {[%clk 0:01:34.9]} 30... Nf7
{[%clk 0:01:58.5]} 31. Be4 {[%clk 0:01:35.5]} 31... Ng5 {[%clk 0:01:48.3]} 32.
Bg2 {[%clk 0:01:34.1]} 32... Nf7 {[%clk 0:01:46]} 33. Qd4 {[%clk 0:01:30.9]}
33... Nd8 {[%clk 0:01:38.8]} 34. h4 {[%clk 0:01:30.1]} 34... Qe7 {[%clk
0:01:38.8]} 35. Kh2 {[%clk 0:01:27.1]} 35... Qc7 {[%clk 0:01:36.5]} 36. a3
{[%clk 0:01:26.5]} 36... h6 {[%clk 0:01:35]} 37. Qf6 {[%clk 0:01:25.8]} 37... g5
{[%clk 0:01:27.7]} 38. hxg5 {[%clk 0:01:22.9]} 38... hxg5 {[%clk 0:01:27.9]} 39.
Qxg5+ {[%clk 0:01:24.1]} 39... Kf8 {[%clk 0:01:28.8]} 40. Qf6+ {[%clk
0:01:15.6]} 40... Ke8 {[%clk 0:01:25.3]} 41. Be4 {[%clk 0:01:14.7]} 41... Qb6
{[%clk 0:01:15.5]} 42. Qe5+ {[%clk 0:01:08.1]} 42... Kf7 {[%clk 0:01:10.8]} 43.
Kg2 {[%clk 0:01:03.6]} 43... a5 {[%clk 0:01:08.8]} 44. g4 {[%clk 0:00:59.7]}
44... axb4 {[%clk 0:01:09]} 45. axb4 {[%clk 0:00:58.9]} 45... Kg8 {[%clk
0:00:25]} 46. g5 {[%clk 0:00:55.3]} 46... Nf7 {[%clk 0:00:24.7]} 47. Qf6 {[%clk
0:00:48]} 47... Qd8 {[%clk 0:00:24]} 48. Bxc6 {[%clk 0:00:28.1]} 48... Qxf6
{[%clk 0:00:18.1]} 49. gxf6 {[%clk 0:00:30]} 49... Nd6 {[%clk 0:00:19.1]} 50.
Bd5+ {[%clk 0:00:31.7]} 50... Kh7 {[%clk 0:00:19.6]} 51. Kf3 {[%clk 0:00:25.8]}
51... Kg6 {[%clk 0:00:20.4]} 52. f7 {[%clk 0:00:27.4]} 52... Kg7 {[%clk
0:00:21.1]} 53. Kf4 {[%clk 0:00:28.3]} 53... Nc8 {[%clk 0:00:19.5]} 54. Ke5
{[%clk 0:00:28.7]} 54... Ne7 {[%clk 0:00:20.4]} 55. Kd6 {[%clk 0:00:28.5]} 55...
Nf5+ {[%clk 0:00:20.2]} 56. Ke6 {[%clk 0:00:27.5]} 56... Nd4+ {[%clk 0:00:19.3]}
57. Ke7 {[%clk 0:00:25.1]} 57... Nf5+ {[%clk 0:00:20]} 58. Kd7 {[%clk
0:00:24.7]} 58... Kf8 {[%clk 0:00:20.3]} 59. Kc6 {[%clk 0:00:24.5]} 59... Nd4+
{[%clk 0:00:20.8]} 60. Kc5 {[%clk 0:00:25.2]} 1-0

[Event "*** Titled Tuesday 3|2 Blitz"]
[Site "Chess.com"]
[Date "2016.10.04"]
[Round "3"]
[White "Dr-Bassem"]
[Black "Gergo85"]
[Result "1-0"]
[WhiteElo "2607"]
[BlackElo "2436"]
[TimeControl "180+2"]
[EndTime "11:37:59 PDT"]
[Termination "Dr-Bassem won by resignation"]

1. e4 {[%clk 0:03:02]} 1... c6 {[%clk 0:02:59.7]} 2. d4 {[%clk 0:03:01.2]} 2...
d5 {[%clk 0:03:00.9]} 3. exd5 {[%clk 0:03:01.8]} 3... cxd5 {[%clk 0:03:02.1]} 4.
c4 {[%clk 0:03:03.7]} 4... Nf6 {[%clk 0:03:02.2]} 5. Nc3 {[%clk 0:03:02.9]} 5...
Nc6 {[%clk 0:03:03.3]} 6. Bg5 {[%clk 0:03:03]} 6... Ne4 {[%clk 0:03:04.1]} 7.
Nxe4 {[%clk 0:03:01.3]} 7... dxe4 {[%clk 0:03:06]} 8. d5 {[%clk 0:03:02.6]} 8...
Ne5 {[%clk 0:03:07.3]} 9. Qd4 {[%clk 0:03:03.4]} 9... f6 {[%clk 0:03:08.8]} 10.
Qxe4 {[%clk 0:03:00.8]} 10... Qb6 {[%clk 0:03:09]} 11. Bd2 {[%clk 0:02:55.3]}
11... Qxb2 {[%clk 0:03:05]} 12. Rb1 {[%clk 0:02:55.1]} 12... Qxa2 {[%clk
0:02:56.6]} 13. Rc1 {[%clk 0:02:32.4]} 13... g6 {[%clk 0:02:53.2]} 14. f4 {[%clk
0:02:30.3]} 14... Bf5 {[%clk 0:02:44.2]} 15. Qd4 {[%clk 0:02:29.7]} 15... Nd7
{[%clk 0:02:26.8]} 16. c5 {[%clk 0:02:29.1]} 16... e5 {[%clk 0:02:11.6]} 17.
fxe5 {[%clk 0:02:29.7]} 17... fxe5 {[%clk 0:02:12.3]} 18. Qc4 {[%clk 0:01:41.2]}
18... Qxc4 {[%clk 0:02:10.9]} 19. Bxc4 {[%clk 0:01:43.1]} 19... Bxc5 {[%clk
0:02:05.9]} 20. Nf3 {[%clk 0:01:35.3]} 20... a6 {[%clk 0:02:07.2]} 21. Ng5
{[%clk 0:00:26.3]} 21... Ba3 {[%clk 0:01:52.4]} 22. Ra1 {[%clk 0:00:21]} 22...
Bb2 {[%clk 0:01:51.6]} 23. Ra2 {[%clk 0:00:22.3]} 23... Bd4 {[%clk 0:01:52.6]}
24. Ne6 {[%clk 0:00:23]} 24... Bxe6 {[%clk 0:01:53.6]} 25. dxe6 {[%clk
0:00:24.9]} 25... Nc5 {[%clk 0:01:50.8]} 26. Rf1 {[%clk 0:00:25.7]} 26... Rf8
{[%clk 0:01:42.1]} 27. Rf7 {[%clk 0:00:25.8]} 27... Nxe6 {[%clk 0:01:19.1]} 28.
Rxb7 {[%clk 0:00:25.6]} 28... Rf7 {[%clk 0:00:57.3]} 29. Rb3 {[%clk 0:00:09.1]}
29... Re7 {[%clk 0:00:50.3]} 30. Rf3 {[%clk 0:00:09.4]} 30... Raa7 {[%clk
0:00:19.4]} 31. Bh6 {[%clk 0:00:07.7]} 31... e4 {[%clk 0:00:17.1]} 32. Rb3
{[%clk 0:00:07.1]} 32... Bg7 {[%clk 0:00:10.6]} 33. Be3 {[%clk 0:00:05]} 33...
Nd4 {[%clk 0:00:10.5]} 34. Rb8+ {[%clk 0:00:05.2]} 34... Kd7 {[%clk 0:00:11.9]}
35. Rd2 {[%clk 0:00:03.2]} 35... Kc7 {[%clk 0:00:12.9]} 36. Rg8 {[%clk
0:00:04.8]} 36... Nf5 {[%clk 0:00:12.1]} 37. Bxa7 {[%clk 0:00:05.3]} 37... Bc3
{[%clk 0:00:10.8]} 38. Ke2 {[%clk 0:00:05.1]} 38... Bxd2 {[%clk 0:00:11.1]} 39.
Kxd2 {[%clk 0:00:07]} 39... Kc6 {[%clk 0:00:10.7]} 40. Be3 {[%clk 0:00:07.4]}
40... a5 {[%clk 0:00:11.3]} 41. Bb3 {[%clk 0:00:07.8]} 41... Nxe3 {[%clk
0:00:11.9]} 42. Kxe3 {[%clk 0:00:08.7]} 42... Kc5 {[%clk 0:00:13.4]} 43. Rb8
{[%clk 0:00:08.6]} 43... Rd7 {[%clk 0:00:07.7]} 44. Kxe4 {[%clk 0:00:08.4]}
44... Rd2 {[%clk 0:00:08.7]} 45. Kf3 {[%clk 0:00:07.1]} 45... Rb2 {[%clk
0:00:09.6]} 46. Rc8+ {[%clk 0:00:07.6]} 46... Kd4 {[%clk 0:00:08.3]} 47. Bg8
{[%clk 0:00:09.5]} 47... h5 {[%clk 0:00:08.2]} 48. Rc4+ {[%clk 0:00:06.9]} 48...
Ke5 {[%clk 0:00:09.1]} 49. Rc5+ {[%clk 0:00:08]} 49... Kf6 {[%clk 0:00:10.3]}
50. Rxa5 {[%clk 0:00:08.7]} 50... Rc2 {[%clk 0:00:11.7]} 51. Bd5 {[%clk
0:00:08.6]} 51... Rc3+ {[%clk 0:00:11.9]} 52. Ke2 {[%clk 0:00:09.6]} 52... g5
{[%clk 0:00:13.3]} 53. Be4 {[%clk 0:00:02.4]} 53... Rc4 {[%clk 0:00:10.2]} 54.
Kd3 {[%clk 0:00:02.9]} 54... Rb4 {[%clk 0:00:03.4]} 55. Rf5+ {[%clk 0:00:04.8]}
55... Ke6 {[%clk 0:00:03.7]} 56. Rxg5 {[%clk 0:00:06.3]} 1-0